fUST/lending_fUST_20260224
["ID","MTS","AMOUNT","RATE_DAILY","PERIOD"]
[406546922,1771931782350,250.0,0.00042456,120]
[406546923,1771931782995,250.0,0.00042456,120]
[406546924,1771931783636,250.0,0.00042456,120]
[406546925,1771931790243,151.0,0.00042456,120]
[406546926,1771931790858,151.0,0.00042456,120]
[406546927,1771931791160,151.0,0.00042456,120]
[406546928,1771931791470,151.0,0.00042456,120]
[406546929,1771931791785,151.0,0.00042456,120]
[406546930,1771931792123,151.0,0.00042456,120]
[406546931,1771931792433,151.0,0.00042456,120]
[406546932,1771931792737,151.0,0.00042456,120]
[406546933,1771931793054,151.0,0.00042456,120]
[406546934,1771931793354,151.0,0.00042456,120]
[406546935,1771931793638,151.0,0.00042456,120]
[406546936,1771931793952,151.0,0.00042456,120]
[406546937,1771931794260,188.0,0.00042456,120]
[406546942,1771931824290,6000.0,0.00011,2]
[406546959,1771932046525,5000.0,0.00042455,120]
[406546960,1771932047151,5000.0,0.00042455,120]
[406546961,1771932047750,5000.0,0.00042455,120]
[406546962,1771932048580,5000.0,0.00042455,120]
[406546963,1771932049181,5000.0,0.00042455,120]
[406546964,1771932049787,5000.0,0.00042455,120]
[406546965,1771932050399,5000.0,0.00042455,120]
[406546966,1771932051031,5000.0,0.00042455,120]
[406546967,1771932051656,5000.0,0.00042455,120]
[406546968,1771932052277,5000.0,0.00042455,120]
[406546969,1771932052922,5000.0,0.00042455,120]
[406546970,1771932053564,5000.0,0.00042455,120]
[406546971,1771932054206,5000.0,0.00042455,120]
[406546975,1771932054833,5000.0,0.00042455,120]
[406546976,1771932055441,5000.0,0.00042455,120]
[406546977,1771932056034,5000.0,0.00042455,120]
[406546978,1771932056673,5000.0,0.00042455,120]
[406546979,1771932057308,5000.0,0.00042455,120]
[406546980,1771932057920,5000.0,0.00042455,120]
[406546981,1771932058542,5000.0,0.00042455,120]
[406546986,1771932085945,5000.0,0.00042455,120]
[406546987,1771932086572,5000.0,0.00042455,120]
[406546988,1771932087205,5000.0,0.00042455,120]
[406546989,1771932087811,5000.0,0.00042455,120]
[406546990,1771932088429,5000.0,0.00042455,120]
[406546991,1771932089034,5000.0,0.00042455,120]
[406546992,1771932089675,5000.0,0.00042455,120]
[406546993,1771932090331,5000.0,0.00042455,120]
[406546994,1771932090947,5000.0,0.00042455,120]
[406546995,1771932091566,5000.0,0.00042455,120]
[406546996,1771932092219,5000.0,0.00042455,120]
[406547000,1771932093362,5000.0,0.00042455,120]
[406547001,1771932094034,5000.0,0.00042455,120]
[406547002,1771932094618,5000.0,0.00042455,120]
[406547003,1771932095232,5000.0,0.00042455,120]
[406547004,1771932095852,5000.0,0.00042455,120]
[406547005,1771932096572,5000.0,0.00042455,120]
[406547006,1771932097186,5000.0,0.00042455,120]
[406547007,1771932097814,5000.0,0.00042455,120]
[406547008,1771932098435,5000.0,0.00042455,120]
[406547019,1771932206183,5000.0,0.00042455,120]
[406547020,1771932206792,5000.0,0.00042455,120]
[406547021,1771932207402,5000.0,0.00042455,120]
[406547022,1771932208032,5000.0,0.00042455,120]
[406547023,1771932208663,5000.0,0.00042455,120]
[406547024,1771932209309,5000.0,0.00042455,120]
[406547026,1771932210091,5000.0,0.00042455,120]
[406547027,1771932210813,5000.0,0.00042455,120]
[406547028,1771932211352,5000.0,0.00042455,120]
[406547029,1771932212024,5000.0,0.00042455,120]
[406547030,1771932212639,5000.0,0.00042455,120]
[406547031,1771932213295,5000.0,0.00042455,120]
[406547032,1771932214050,5000.0,0.00042455,120]
[406547033,1771932214674,5000.0,0.00042455,120]
[406547034,1771932215332,5000.0,0.00042455,120]
[406547035,1771932216484,5000.0,0.00042455,120]
[406547036,1771932217135,5000.0,0.00042455,120]
[406547037,1771932217789,5000.0,0.00042455,120]
[406547038,1771932218460,5000.0,0.00042455,120]
[406547039,1771932219080,5000.0,0.00042455,120]
[406547043,1771932279059,763.66772033,0.00042458,120]
[406547046,1771932303891,510.0,0.00042458,120]
[406547048,1771932330108,-500.0,0.00013273,2]
[406547049,1771932330127,-344.56860971,0.00016037,2]
[406547051,1771932350755,500.0,0.00042458,120]
[406547052,1771932350985,500.0,0.00042458,120]
[406547053,1771932351219,500.0,0.00042458,120]
[406547054,1771932351481,500.0,0.00042458,120]
[406547055,1771932351723,500.0,0.00042458,120]
[406547056,1771932351956,500.0,0.00042458,120]
[406547057,1771932352183,500.0,0.00042458,120]
[406547058,1771932352423,500.0,0.00042458,120]
[406547059,1771932352674,500.0,0.00042458,120]
[406547060,1771932353059,500.0,0.00042458,120]
[406547061,1771932353539,500.0,0.00042458,120]
[406547067,1771932353934,500.0,0.00042458,120]
[406547068,1771932354058,500.0,0.00042458,120]
[406547069,1771932354292,500.0,0.00042458,120]
[406547070,1771932354518,500.0,0.00042458,120]
[406547071,1771932354785,403.15110622,0.00042458,120]
[406547079,1771932451415,500.0,0.00042458,120]
[406547080,1771932451703,500.0,0.00042458,120]
[406547081,1771932451936,500.0,0.00042458,120]
[406547082,1771932452168,-1298.39485531,0.00016037,2]
[406547083,1771932452200,500.0,0.00042458,120]
[406547084,1771932452417,500.0,0.00042458,120]
[406547102,1771932514917,500.0,0.00042458,120]
[406547103,1771932515149,500.0,0.00042458,120]
[406547104,1771932515380,500.0,0.00042458,120]
[406547105,1771932515624,607.84836213,0.00042458,120]
[406547137,1771932632113,-665.05,0.00016037,2]
[406547138,1771932632126,-940.06947016,0.00016037,2]
[406547178,1771932638460,-1790.26318032,0.00016037,2]
[406547180,1771932638470,-581.23953752,0.00016719,2]
[406547182,1771932638479,-1325.46168685,0.0001689,2]
[406547184,1771932638489,-500.0,0.00016988,2]
[406547186,1771932638499,-472.1753762,0.00016988,2]
[406547188,1771932638508,-322.27164099,0.00016988,2]
[406547190,1771932638517,-500.0,0.00016988,2]
[406547192,1771932638526,-500.0,0.00016988,2]
[406547194,1771932638535,-500.0,0.00016988,2]
[406547196,1771932638545,-500.0,0.00016988,2]
[406547198,1771932638554,-500.0,0.00016988,2]
[406547200,1771932638563,-500.0,0.00016988,2]
[406547202,1771932638573,-500.0,0.00016988,2]
[406547204,1771932638582,-500.0,0.00016988,2]
[406547206,1771932638591,-505.45409477,0.00016988,2]
[406547208,1771932638601,-500.0,0.00016988,2]
[406547210,1771932638610,-500.0,0.00016988,2]
[406547212,1771932638619,-500.0,0.00016988,2]
[406547214,1771932638628,-500.0,0.00016988,2]
[406547216,1771932638638,-500.0,0.00016988,2]
[406547218,1771932638648,-500.0,0.00016988,2]
[406547220,1771932638657,-500.0,0.00016988,2]
[406547222,1771932638667,-500.0,0.00016988,2]
[406547224,1771932638676,-500.0,0.00016988,2]
[406547226,1771932638686,-500.0,0.00016988,2]
[406547228,1771932638696,-500.0,0.00016988,2]
[406547230,1771932638705,-500.0,0.00016988,2]
[406547232,1771932638714,-500.0,0.00016988,2]
[406547234,1771932638723,-500.0,0.00016988,2]
[406547236,1771932638732,-500.0,0.00016988,2]
[406547238,1771932638741,-641.81018243,0.00016988,2]
[406547240,1771932638751,-621.55700548,0.00016988,2]
[406547243,1771932638760,-500.0,0.00016988,2]
[406547245,1771932638770,-500.0,0.00016988,2]
[406547246,1771932638779,-500.0,0.00016988,2]
[406547249,1771932638789,-500.0,0.00016988,2]
[406547250,1771932638799,-500.0,0.00016988,2]
[406547252,1771932638809,-500.0,0.00016988,2]
[406547254,1771932638818,-500.0,0.00016988,2]
[406547257,1771932638829,-500.0,0.00016988,2]
[406547259,1771932638839,-500.0,0.00016988,2]
[406547261,1771932638848,-391.50977102,0.00016988,2]
[406547263,1771932638859,-500.0,0.00016988,2]
[406547265,1771932638869,-500.0,0.00016988,2]
[406547267,1771932638878,-500.0,0.00016988,2]
[406547269,1771932638888,-500.0,0.00016988,2]
[406547270,1771932638898,-500.0,0.00016988,2]
[406547272,1771932638909,-500.0,0.00016988,2]
[406547274,1771932638918,-500.0,0.00016988,2]
[406547276,1771932638928,-500.0,0.00016988,2]
[406547279,1771932638939,-500.0,0.00016988,2]
[406547281,1771932638948,-500.0,0.00016988,2]
[406547283,1771932638958,-391.3938271,0.00016988,2]
[406547285,1771932638968,-500.0,0.00016988,2]
[406547287,1771932638978,-500.0,0.00016988,2]
[406547289,1771932638988,-500.0,0.00016988,2]
[406547291,1771932638997,-500.0,0.00016988,2]
[406547293,1771932639006,-500.0,0.00016988,2]
[406547295,1771932639016,-500.0,0.00016988,2]
[406547297,1771932639026,-500.0,0.00016988,2]
[406547299,1771932639035,-500.0,0.00016988,2]
[406547301,1771932639049,-500.0,0.00016988,2]
[406547303,1771932639058,-500.0,0.00016988,2]
[406547305,1771932639067,-500.0,0.00016988,2]
[406547307,1771932639077,-500.0,0.00016988,2]
[406547309,1771932639087,-500.0,0.00016988,2]
[406547311,1771932639096,-500.0,0.00016988,2]
[406547313,1771932639105,-500.0,0.00016988,2]
[406547315,1771932639116,-500.0,0.00016988,2]
[406547317,1771932639126,-500.0,0.00016988,2]
[406547319,1771932639135,-500.0,0.00016988,2]
[406547320,1771932639144,-500.0,0.00016988,2]
[406547322,1771932639154,-159.82375408,0.00016988,2]
[406547324,1771932639164,-500.0,0.00016988,2]
[406547326,1771932639173,-500.0,0.00016988,2]
[406547328,1771932639183,-500.0,0.00016988,2]
[406547330,1771932639193,-500.0,0.00016988,2]
[406547333,1771932639203,-500.0,0.00016988,2]
[406547335,1771932639212,-500.0,0.00016988,2]
[406547336,1771932639222,-500.0,0.00016988,2]
[406547339,1771932639232,-500.0,0.00016988,2]
[406547340,1771932639243,-500.0,0.00016988,2]
[406547343,1771932639254,-500.0,0.00016988,2]
[406547353,1771932639264,-500.0,0.00016988,2]
[406547355,1771932639364,-500.0,0.00016988,2]
[406547357,1771932639373,-31.89876549,0.00016988,2]
[406547359,1771932639386,-468.10123451,0.00016988,2]
[406547362,1771932639396,-500.0,0.00016988,2]
[406547364,1771932639406,-500.0,0.00016988,2]
[406547366,1771932639416,-500.0,0.00016988,2]
[406547368,1771932639426,-500.0,0.00016988,2]
[406547370,1771932639435,-500.0,0.00016988,2]
[406547372,1771932639443,-500.0,0.00016988,2]
[406547374,1771932639452,-500.0,0.00016988,2]
[406547376,1771932639461,-500.0,0.00016988,2]
[406547378,1771932639471,-500.0,0.00016988,2]
[406547380,1771932639480,-500.0,0.00016988,2]
[406547382,1771932639489,-500.0,0.00016988,2]
[406547384,1771932639499,-500.0,0.00016988,2]
[406547386,1771932639508,-500.0,0.00016988,2]
[406547388,1771932639518,-500.0,0.00016988,2]
[406547390,1771932639527,-500.0,0.00016988,2]
[406547392,1771932639536,-500.0,0.00016988,2]
[406547394,1771932639545,-500.0,0.00016988,2]
[406547396,1771932639555,-500.0,0.00016988,2]
[406547398,1771932639564,-500.0,0.00016988,2]
[406547400,1771932639573,-500.0,0.00016988,2]
[406547402,1771932639593,-500.0,0.00016988,2]
[406547404,1771932639602,-500.0,0.00016988,2]
[406547406,1771932639611,-500.0,0.00016988,2]
[406547408,1771932639621,-500.0,0.00016988,2]
[406547410,1771932639634,-500.0,0.00016988,2]
[406547412,1771932639644,-500.0,0.00016988,2]
[406547413,1771932639654,-500.0,0.00016988,2]
[406547416,1771932639663,-500.0,0.00016988,2]
[406547417,1771932639672,-262.65980789,0.00016988,2]
[406547420,1771932639682,-500.0,0.00016988,2]
[406547422,1771932639691,-272.46314297,0.00016989,2]
[406547424,1771932639701,-500.0,0.00016989,2]
[406547426,1771932639711,-500.0,0.00016989,2]
[406547428,1771932639720,-524.73,0.00016989,2]
[406547429,1771932639729,-151.0,0.00016989,2]
[406547431,1771932639738,-490.43365735,0.00016989,2]
[406547433,1771932639747,-208.08119682,0.00016989,2]
[406547435,1771932639756,-500.0,0.00016989,2]
[406547437,1771932639765,-9586.09963311,0.0001699,2]
[406548088,1771932646300,-6124.837395,0.0001699,2]
[406548090,1771932646311,-2038.76789225,0.0001699,2]
[406548108,1771932646461,-2443.18497733,0.0001699,2]
[406548110,1771932646473,-1263.0,0.0001699,2]
[406548400,1771932671362,500.0,0.00013273,2]
[406548401,1771932686063,530.39745896,0.00042458,120]
[406548434,1771932730829,500.0,0.00042458,120]
[406548435,1771932731056,500.0,0.00042458,120]
[406548436,1771932731286,500.0,0.00042458,120]
[406548437,1771932731515,500.0,0.00042458,120]
[406548438,1771932732105,500.0,0.00042458,120]
[406548439,1771932732347,500.0,0.00042458,120]
[406548440,1771932732685,300.0,0.00042458,120]
[406548491,1771933087805,1638.4524335,0.00042453,120]
[406548575,1771933204983,16213.0,0.00042459,10]
[406548611,1771933338770,5013.0,0.00042459,30]
[406548617,1771933371470,5000.0,0.00042459,30]
[406548623,1771933391307,500.0,0.00042459,120]
[406548624,1771933391551,500.0,0.00042459,120]
[406548625,1771933391808,500.0,0.00042459,120]
[406548628,1771933392121,500.0,0.00042459,120]
[406548629,1771933392363,500.0,0.00042459,120]
[406548630,1771933392606,500.0,0.00042459,120]
[406548631,1771933392838,500.0,0.00042459,120]
[406548632,1771933393078,500.0,0.00042459,120]
[406548633,1771933393321,500.0,0.00042459,120]
[406548634,1771933393550,500.0,0.00042459,120]
[406548635,1771933393794,500.0,0.00042459,120]
[406548636,1771933394042,500.0,0.00042459,120]
[406548637,1771933395233,500.0,0.00042459,120]
[406548638,1771933395462,500.0,0.00042459,120]
[406548639,1771933395692,500.0,0.00042459,120]
[406548640,1771933395926,500.0,0.00042459,120]
[406548641,1771933396154,500.0,0.00042459,120]
[406548642,1771933396395,500.0,0.00042459,120]
[406548643,1771933396625,500.0,0.00042459,120]
[406548644,1771933396847,526.03356706,0.00042459,120]
[406548714,1771933549154,-284.46,0.00013,2]
[406548715,1771933549174,-300.0,0.00013271,2]
[406548716,1771933549194,-190.7061194,0.00013271,2]
[406548727,1771933650077,-877.19333791,0.00013138,2]
[406548728,1771933669888,2000.0,0.00042459,10]
[406548731,1771933756716,5000.0,0.00042459,40]
[406548785,1771933832449,-1200.0,0.00013271,2]
[406548787,1771933832459,-256.0,0.00013272,2]
[406548789,1771933832470,-300.0,0.00013272,2]
[406548804,1771933832581,-300.0,0.00013272,2]
[406548807,1771933832591,-608.0,0.00013272,2]
[406548808,1771933832601,-500.0,0.00013273,2]
[406548810,1771933832610,-199.92106232,0.00013273,2]
[406548916,1771933838433,-300.07893768,0.00013273,2]
[406548918,1771933838443,-500.0,0.00013273,2]
[406548919,1771933838452,-500.0,0.00013273,2]
[406548921,1771933838462,-500.0,0.00013273,2]
[406548923,1771933838471,-500.0,0.00013273,2]
[406548925,1771933838480,-500.0,0.00013273,2]
[406548927,1771933838490,-500.0,0.00013273,2]
[406548929,1771933838499,-500.0,0.00013273,2]
[406548931,1771933838508,-500.0,0.00013273,2]
[406548933,1771933838517,-500.0,0.00013273,2]
[406548935,1771933838526,-500.0,0.00013698,2]
[406548937,1771933838536,-500.0,0.00013698,2]
[406548939,1771933838545,-500.0,0.00013698,2]
[406548941,1771933838555,-500.0,0.00013698,2]
[406548943,1771933838563,-500.0,0.00013698,2]
[406548945,1771933838575,-500.0,0.00013698,2]
[406548947,1771933838584,-555.77878072,0.00013698,2]
[406548949,1771933838593,-500.0,0.00013698,2]
[406548951,1771933838603,-500.0,0.00013698,2]
[406548953,1771933838613,-500.0,0.00013698,2]
[406548955,1771933838622,-500.0,0.00013698,2]
[406548957,1771933838631,-500.0,0.00013698,2]
[406548959,1771933838641,-500.0,0.00013698,2]
[406548961,1771933838651,-615.98237541,0.00013698,2]
[406548963,1771933838660,-500.0,0.00013698,2]
[406548965,1771933838670,-500.0,0.00013698,2]
[406548967,1771933838679,-402.39522283,0.00013698,2]
[406548969,1771933838689,-500.0,0.00013699,2]
[406548971,1771933838698,-165.03910249,0.00013699,2]
[406548973,1771933838709,-135.15423811,0.00013699,2]
[406548975,1771933838719,-501.07445097,0.00013699,2]
[406548977,1771933838728,-547.91161747,0.00013699,2]
[406548979,1771933838737,-500.0,0.00013699,2]
[406548981,1771933838746,-384.92643149,0.00013699,2]
[406548983,1771933838755,-243.63143784,0.00013699,2]
[406548985,1771933838763,-500.0,0.00013699,2]
[406548987,1771933838772,-500.0,0.00013699,2]
[406548989,1771933838781,-500.0,0.00013699,2]
[406548991,1771933838790,-596.25846824,0.00013699,2]
[406548993,1771933838799,-500.0,0.00013699,2]
[406548994,1771933838808,-500.0,0.00013699,2]
[406548996,1771933838817,-502.2280031,0.00013699,2]
[406548998,1771933838826,-500.0,0.00013699,2]
[406549000,1771933838835,-500.0,0.00013699,2]
[406549002,1771933838845,-500.0,0.00013699,2]
[406549004,1771933838854,-505.07865696,0.00013699,2]
[406549006,1771933838864,-331.79859683,0.00013699,2]
[406549008,1771933838873,-500.0,0.00013699,2]
[406549010,1771933838884,-500.0,0.00013699,2]
[406549012,1771933838893,-500.0,0.00013699,2]
[406549014,1771933838903,-500.0,0.00013699,2]
[406549016,1771933838912,-500.0,0.00013699,2]
[406549018,1771933838922,-500.0,0.00013699,2]
[406549020,1771933838931,-500.0,0.00013699,2]
[406549022,1771933838940,-500.0,0.00013699,2]
[406549024,1771933838950,-500.0,0.00013699,2]
[406549026,1771933838959,-500.0,0.00013699,2]
[406549028,1771933838969,-500.0,0.00013699,2]
[406549030,1771933838979,-564.64954297,0.00013699,2]
[406549032,1771933838987,-500.0,0.00013699,2]
[406549034,1771933838997,-500.0,0.00013699,2]
[406549036,1771933839008,-500.0,0.00013699,2]
[406549038,1771933839017,-500.0,0.00013699,2]
[406549040,1771933839026,-500.0,0.00013699,2]
[406549042,1771933839035,-500.0,0.00013699,2]
[406549044,1771933839045,-500.0,0.00013699,2]
[406549046,1771933839054,-500.0,0.00013699,2]
[406549048,1771933839065,-500.0,0.00013699,2]
[406549050,1771933839074,-500.0,0.00013819,2]
[406549052,1771933839083,-501.76292103,0.00013819,2]
[406549054,1771933839093,-1000.0,0.00013821,2]
[406549055,1771933839102,-1000.0,0.00013821,2]
[406549057,1771933839110,-1091.65371475,0.00013821,2]
[406549059,1771933839120,-228.40172382,0.00013973,2]
[406549061,1771933839130,-500.0,0.00013973,2]
[406549063,1771933839140,-500.0,0.00014247,2]
[406549065,1771933839149,-374.93006926,0.00014247,2]
[406549067,1771933839160,-500.0,0.00014247,2]
[406549069,1771933839169,-500.0,0.00014247,2]
[406549071,1771933839179,-633.77964294,0.00014247,2]
[406549073,1771933839187,-500.0,0.00014247,2]
[406549076,1771933839197,-1000.82824789,0.00014247,2]
[406549078,1771933839206,-159.53127852,0.00014247,2]
[406549079,1771933839216,-1500.0,0.00014368,2]
[406549082,1771933839226,-560.98465938,0.00014521,2]
[406549083,1771933839235,-420.0,0.00014551,2]
[406549085,1771933839246,-1083.0,0.00014598,2]
[406549087,1771933839255,-427.0673796,0.00014916,2]
[406549089,1771933839265,-587.0,0.00015953,2]
[406549091,1771933839274,-251.97597642,0.00016743,2]
[406549093,1771933839283,-173.846092,0.00016878,2]
[406549095,1771933839292,-374.54615427,0.00016988,2]
[406549097,1771933839301,-263.98576594,0.00016988,2]
[406549099,1771933839310,-13996.14843903,0.0001699,2]
[406549259,1771933840826,-1632.110608,0.0001699,2]
[406549541,1771933843691,-3061.87030069,0.0001699,2]
[406549544,1771933843702,-2984.20645143,0.0001699,2]
[406549546,1771933843713,-2584.45377098,0.0001699,2]
[406549808,1771933846447,-14970.90944582,0.0001699,2]
[406550121,1771933861243,500.0,0.00042459,120]
[406550122,1771933861477,500.0,0.00042459,120]
[406550123,1771933861741,500.0,0.00042459,120]
[406550124,1771933861995,500.0,0.00042459,120]
[406550125,1771933862236,500.0,0.00042459,120]
[406550126,1771933862481,602.65,0.00042459,120]
[406550129,1771933881668,500.0,0.00042459,120]
[406550130,1771933881909,500.0,0.00042459,120]
[406550131,1771933882146,500.0,0.00042459,120]
[406550132,1771933882383,500.0,0.00042459,120]
[406550133,1771933882619,500.0,0.00042459,120]
[406550139,1771933905264,206.97853503,0.00042459,120]
[406550158,1771933966403,500.0,0.00042459,21]
[406550159,1771933966630,500.0,0.00042459,21]
[406550160,1771933966913,500.0,0.00042459,21]
[406550161,1771933967163,500.0,0.00042459,21]
[406550162,1771933967407,500.0,0.00042459,21]
[406550164,1771934029246,500.0,0.00042459,120]
[406550165,1771934029489,500.0,0.00042459,120]
[406550166,1771934029717,500.0,0.00042459,120]
[406550167,1771934029952,500.0,0.00042459,120]
[406550168,1771934030197,500.0,0.00042459,120]
[406550169,1771934030447,500.0,0.00042459,120]
[406550171,1771934082930,2339.0,0.00042453,90]
[406550180,1771934346270,-500.0,0.00013273,2]
[406550181,1771934346291,-300.0,0.00013697,2]
[406550182,1771934346311,-384.20494611,0.00013698,2]
[406550183,1771934346331,-500.0,0.00013698,2]
[406550184,1771934346352,-500.0,0.00013698,2]
[406550185,1771934346372,-300.0,0.00013698,2]
[406550186,1771934346392,-300.0,0.00013698,2]
[406550187,1771934346413,-1200.0,0.00013698,2]
[406550188,1771934346432,-500.0,0.00013699,2]
[406550189,1771934346451,-500.0,0.00013699,2]
[406550190,1771934346471,-500.0,0.00013699,2]
[406550191,1771934346495,-500.0,0.00013699,2]
[406550192,1771934346515,-500.0,0.00013699,2]
[406550193,1771934346535,-500.0,0.00013699,2]
[406550194,1771934346556,-500.0,0.00014247,2]
[406550195,1771934346576,-1000.0,0.00014247,2]
[406550196,1771934346597,-720.82545425,0.00014795,2]
[406550197,1771934346617,-420.0,0.0001501,2]
[406550198,1771934346638,-374.96959964,0.00015067,2]
[406550199,1771934348110,-500.0,0.00013699,2]
[406550200,1771934348131,-207.03040036,0.00015067,2]
[406550201,1771934348153,-340.5550001,0.00015909,2]
[406550202,1771934365756,151.0,0.00042453,120]
[406550203,1771934366453,151.0,0.00042453,120]
[406550205,1771934394529,500.0,0.00042456,120]
[406550206,1771934394774,500.0,0.00042456,120]
[406550207,1771934395020,500.0,0.00042456,120]
[406550208,1771934395263,500.0,0.00042456,120]
[406550209,1771934395500,500.0,0.00042456,120]
[406550210,1771934395769,500.0,0.00042456,120]
[406550218,1771934451800,-500.0,0.00013699,2]
[406550219,1771934451821,-454.99852593,0.00014247,2]
[406550223,1771934472763,500.0,0.00042456,120]
[406550224,1771934473016,573.13655789,0.00042456,120]
[406550227,1771934481612,-528.41083329,0.00016988,2]
[406550228,1771934481636,-139.58916671,0.00016988,2]
[406550229,1771934510957,-528.41083329,0.0001665,2]
[406550231,1771934535768,-500.0,0.00013699,2]
[406550232,1771934535790,-164.58997915,0.00013699,2]
[406550233,1771934535811,-376.15252368,0.00014247,2]
[406550234,1771934535834,-4471.58916671,0.0001665,2]
[406550235,1771934535856,-787.66833046,0.00016818,2]
[406550238,1771934611891,-500.0,0.00013699,2]
[406550239,1771934611912,-5384.0665063,0.00016134,2]
[406550240,1771934611933,-300.0,0.00016483,2]
[406550241,1771934611953,-3815.9334937,0.00016484,2]
[406550242,1771934614735,-1184.0665063,0.00016484,2]
[406550243,1771934614758,-164.34993886,0.00016508,2]
[406550244,1771934614780,-587.2892043,0.0001665,2]
[406550245,1771934614802,-4212.33166954,0.00016818,2]
[406550246,1771934625607,500.0,0.00042456,120]
[406550247,1771934625787,500.0,0.00042456,120]
[406550248,1771934626033,500.0,0.00042456,120]
[406550249,1771934626266,500.0,0.00042456,120]
[406550250,1771934626493,500.0,0.00042456,120]
[406550251,1771934626723,500.0,0.00042456,120]
[406550252,1771934656750,500.0,0.00042456,120]
[406550253,1771934657012,500.0,0.00042456,120]
[406550254,1771934657261,500.0,0.00042456,120]
[406550255,1771934657508,500.0,0.00042456,120]
[406550256,1771934657741,500.0,0.00042456,120]
[406550257,1771934658027,500.0,0.00042456,120]
[406550258,1771934689476,-5000.0,0.00016721,2]
[406550259,1771934689501,-300.0,0.00016889,2]
[406550260,1771934689524,-4700.0,0.0001689,2]
[406550261,1771934691532,-10000.0,0.0001689,2]
[406550262,1771934693078,-571.57385748,0.000169,2]
[406550267,1771934739106,-300.0,0.00016989,2]
[406550268,1771934739127,-339.21320895,0.00016989,2]
[406550275,1771934787895,-197.85314018,0.00016889,2]
[406550276,1771934790474,12961.35705794,0.00042457,120]
[406550277,1771934798963,-702.14685982,0.00016989,2]
[406550278,1771934810085,-158.63993123,0.00016989,2]
[406550279,1771934810107,-48.15092073,0.00016989,2]
[406550280,1771934844092,-192.25606971,0.00016508,2]
[406550281,1771934844116,-281.41720062,0.00016988,2]
[406550312,1771934887915,151.0,0.00042457,120]
[406550339,1771935031461,-323.24730094,0.00016889,2]
[406550343,1771935031515,-2020.52601597,0.00016889,2]
[406550344,1771935031524,-300.0,0.00016988,2]
[406550345,1771935031533,-300.0,0.00016988,2]
[406550346,1771935031542,-300.0,0.00016988,2]
[406550347,1771935031552,-300.0,0.00016988,2]
[406550348,1771935031561,-431.73747589,0.00016988,2]
[406550356,1771935037585,-236.26252411,0.00016988,2]
[406550358,1771935037595,-480.0,0.00016988,2]
[406550360,1771935037604,-500.0,0.00016989,2]
[406550362,1771935037613,-595.62495259,0.00016989,2]
[406550364,1771935037623,-500.0,0.00016989,2]
[406550366,1771935037632,-500.0,0.00016989,2]
[406550368,1771935037641,-377.60952635,0.00016989,2]
[406550370,1771935037650,-500.0,0.00016989,2]